bitfinex-derivatives/quotes_ETHF0:USTF0_20210107
["timestamp","ask_amount","ask_price","bid_price","bid_amount"]
[1610043441695,2.6125,1282.7,1282.6,0.22074886]
[1610043442093,61.7262,1283.2,1282.4,0.66210042]
[1610043442292,61.7262,1283.2,1282.3,0.22009558]
[1610043442293,58.74,1283.2,1282.3,0.22009558]
[1610043442495,4.00959,1282.7,1282.3,0.22009558]
[1610043442892,58.74,1283.2,1282.3,0.22009558]
[1610043444096,58.74,1283.2,1282.7,0.21911912]
[1610043444296,58.74,1283.2,1282.7,3.34491912]
[1610043444497,4.00959,1282.9,1282.7,3.34491912]
[1610043446096,4.00959,1282.9,1282.8,0.2191094]
[1610043447398,4.00959,1282.9,1282.8,1.09344965]
[1610043447900,64.8314,1283.7,1282.8,1.09344965]
[1610043448500,4.00959,1283.3,1283.1,4.00959]
[1610043448900,4.00959,1283.3,1282.7,3.1258]
[1610043449101,12.12649,1283.3,1282.7,3.1258]
[1610043449300,12.12649,1283.3,1282.6,1.31013507]
[1610043450401,12.12649,1283.3,1283.2,0.87292215]
[1610043450801,12.12649,1283.3,1283.2,2.93072215]
[1610043451603,12.12649,1283.3,1283.2,2.49513309]
[1610043451802,12.12649,1283.3,1283.2,0.43733309]
[1610043453203,12.12649,1283.3,1283.0,0.21896487]
[1610043453403,14.68679,1283.3,1283.0,0.21896487]
[1610043454605,14.68679,1283.3,1282.9,0.21895694]
[1610043454606,4.00959,1283.1,1282.9,0.21895694]
[1610043456811,4.00959,1283.1,1282.8,0.21880087]
[1610043458412,4.00959,1283.1,1282.7,0.21887674]
[1610043458612,4.00959,1282.8,1282.7,0.21887674]
[1610043459414,8.1169,1283.3,1282.7,0.21887674]
[1610043459713,8.1169,1283.3,1282.7,2.99097674]
[1610043460313,1.9299,1284.4,1282.7,2.99097674]
[1610043460514,4.78410792,1284.6,1282.7,2.7721]
[1610043460715,4.00959,1283.5,1282.8,4.00959]
[1610043461720,4.00959,1283.5,1283.4,0.43625956]
[1610043461920,4.00959,1283.5,1283.4,2.81915956]
[1610043462922,4.00959,1283.5,1283.4,3.2550871]
[1610043463521,56.4262,1284.0,1283.4,3.2550871]
[1610043464623,4.00959,1283.5,1283.4,3.2550871]
[1610043464822,4.00959,1283.5,1283.4,3.03825383]
[1610043466525,4.00959,1283.5,1283.4,2.3829]
[1610043466925,4.00959,1283.5,1283.0,3.49876488]
[1610043467728,56.4262,1284.0,1283.0,3.49876488]
[1610043468127,56.4262,1284.0,1283.1,0.21949913]
[1610043468727,4.00959,1283.5,1283.1,0.21949913]
[1610043469634,4.00959,1283.5,1283.2,0.21938612]
[1610043470632,4.00959,1283.3,1283.0,3.27952816]
[1610043470831,4.00959,1283.3,1283.0,0.21932816]
[1610043471231,58.6612,1283.1,1283.0,0.21932816]
[1610043471832,58.6612,1283.1,1282.8,0.21940889]
[1610043472636,4.00959,1282.9,1282.8,0.21940889]
[1610043473434,4.00959,1282.9,1282.7,2.7721]
[1610043473835,4.00959,1282.9,1282.6,0.21958775]
[1610043474636,4.00959,1282.7,1282.6,0.21958775]
[1610043476035,6.63379,1282.7,1282.3,0.2201385]
[1610043476635,4.00959,1282.4,1282.3,0.2201385]
[1610043477036,4.00959,1282.4,1282.2,0.22031677]
[1610043477637,6.80169,1282.4,1282.2,0.22031677]
[1610043478237,6.80169,1282.4,1282.0,0.22052813]
[1610043478637,4.00959,1282.1,1282.0,0.22052813]
[1610043479437,4.00959,1282.1,1281.8,0.44105626]
[1610043480440,4.00959,1282.1,1281.7,0.40416971]
[1610043480640,4.00959,1281.8,1281.7,0.40416971]
[1610043485547,4.00959,1281.8,1281.7,1.28606622]
[1610043486746,2.6242,1282.7,1281.7,1.28606622]
[1610043486947,5.5928,1283.0,1281.7,1.28606622]
[1610043488247,3.475,1283.0,1281.7,1.28606622]
[1610043488648,4.00959,1282.9,1282.3,4.00959]
[1610043489848,3.475,1283.0,1282.3,4.00959]
[1610043490251,3.475,1283.0,1282.3,6.31279]
[1610043490653,3.475,1283.0,1282.8,0.44101805]
[1610043490851,4.00959,1283.3,1282.8,2.83861805]
[1610043491250,6.912,1284.0,1282.8,2.83861805]
[1610043492051,6.912,1284.0,1282.9,1.10012451]
[1610043492251,20.617,1285.4,1282.9,1.10012451]
[1610043492651,4.00959,1283.5,1283.4,4.00959]
[1610043493055,4.00959,1283.5,1283.4,4.66891034]
[1610043493452,4.00959,1283.5,1283.4,0.65932034]
[1610043494955,2.8515,1284.5,1283.4,0.65932034]
[1610043495155,2.8515,1284.5,1283.4,0.87782935]
[1610043495356,2.8515,1284.5,1283.4,2.82792935]
[1610043495958,2.0915,1284.8,1283.4,2.82792935]
[1610043496159,2.0915,1284.8,1283.8,0.21906771]
[1610043496559,2.0915,1284.8,1283.8,3.22306771]
[1610043496760,4.00959,1283.9,1283.8,3.22306771]
[1610043497662,4.00959,1283.9,1283.8,3.004]
[1610043499065,6.40389,1283.9,1283.8,3.004]
[1610043499265,6.40389,1283.9,1283.8,3.22326815]
[1610043499465,6.40389,1283.9,1283.7,0.4385363]
[1610043500467,6.40389,1283.9,1283.0,0.44039807]
[1610043500670,4.00959,1283.1,1283.0,0.44039807]
[1610043502071,4.00959,1283.1,1282.8,2.8383493]
[1610043502767,4.00959,1282.9,1282.8,2.8383493]
[1610043504169,4.00959,1282.9,1282.8,2.3976]
[1610043504369,4.00959,1282.9,1282.7,0.66112395]
[1610043505371,7.21149,1282.9,1282.7,0.66112395]
[1610043505773,7.21149,1282.9,1282.7,0.44188431]
[1610043506974,7.21149,1282.9,1282.3,1.10471076]
[1610043507175,7.21149,1282.9,1282.2,0.44272608]
[1610043508675,4.00959,1282.3,1282.2,0.44272608]
[1610043509975,12.10749,1282.3,1282.2,0.44272608]
[1610043510977,12.10749,1282.3,1282.2,0.22164749]
[1610043514082,12.10749,1282.3,1282.1,0.2217489]
[1610043517589,12.10749,1282.3,1282.2,0.22153242]
[1610043518898,4.00959,1282.3,1282.2,0.22153242]
[1610043520494,4.00959,1282.3,1281.8,0.2217954]
[1610043520696,4.00959,1281.9,1281.8,0.2217954]
[1610043521298,53.34699,1281.9,1281.7,0.40416971]
[1610043521497,53.34699,1281.9,1281.3,2.67699753]
[1610043521699,49.0589,1281.7,1281.3,2.67699753]
[1610043522698,49.0589,1281.7,1281.5,0.66537384]
[1610043523095,32.4822,1282.3,1281.5,0.66537384]
[1610043524097,32.4822,1282.3,1281.2,0.66651641]
[1610043524697,4.00959,1281.3,1281.2,0.66651641]
[1610043524897,6.20659,1281.3,1281.2,0.66651641]
[1610043525098,49.9913,1281.2,1281.1,0.88868855]
[1610043525898,49.9913,1281.2,1280.8,0.89007425]
[1610043526901,4.00959,1280.9,1280.8,0.89007425]
[1610043527802,4.00959,1280.9,1280.6,0.89059611]
[1610043528803,4.00959,1280.7,1280.6,0.89059611]
[1610043529406,50.553,1280.6,1280.4,0.89166448]
[1610043529606,30.0,1280.6,1280.4,0.89166448]
[1610043530809,4.00959,1280.5,1279.8,0.40416971]
[1610043531009,60.404,1280.4,1279.8,0.40416971]
[1610043531209,30.0,1280.3,1279.8,0.40416971]
[1610043531610,61.7497,1279.7,1279.2,1.78754404]
[1610043531811,61.7497,1279.7,1279.6,0.22408681]
[1610043531812,64.8904,1279.7,1279.6,0.22408681]
[1610043532011,94.8904,1279.7,1279.6,0.22408681]
[1610043532210,33.1407,1279.7,1278.6,3.72809452]
[1610043532411,58.0489,1279.6,1278.6,3.72809452]
[1610043532615,30.0,1279.5,1278.6,1.9354]
[1610043532812,4.00959,1278.7,1278.6,1.9354]
[1610043533011,7.1536,1278.6,1278.2,1.79595705]
[1610043534114,30.0,1278.6,1277.8,1.80028411]
[1610043534315,60.1386,1278.2,1277.8,1.80028411]
[1610043534513,30.0,1278.6,1277.8,1.80028411]
[1610043534716,57.06169,1278.7,1277.8,4.13538411]
[1610043534914,53.0521,1278.7,1277.8,4.13538411]
[1610043535114,32.5744,1278.8,1277.8,4.13538411]
[1610043535314,30.0,1278.7,1277.8,4.13538411]
[1610043535515,4.00959,1278.0,1277.8,4.13538411]
[1610043535716,36.53569,1278.0,1277.3,1.80446741]
[1610043536315,6.53569,1278.0,1277.3,1.80446741]
[1610043536918,36.53569,1278.0,1277.3,1.80446741]
[1610043537115,36.53569,1278.0,1277.7,0.68003004]
[1610043537317,36.53569,1278.0,1276.9,1.81341345]
[1610043537916,36.53569,1278.0,1276.0,3.17347353]
[1610043538116,50.3823,1276.9,1276.0,3.17347353]
[1610043538316,30.0,1276.9,1276.0,3.17347353]
[1610043538521,32.1081,1276.9,1276.0,3.17347353]
[1610043538722,32.1081,1276.9,1276.2,1.82027905]
[1610043539122,64.1489,1276.2,1276.0,2.27534882]
[1610043539323,30.0,1276.1,1276.0,2.27534882]
[1610043539525,34.00959,1276.1,1276.0,2.27534882]
[1610043539725,34.00959,1276.1,1274.7,3.64055811]
[1610043539922,62.1334,1275.3,1274.7,3.64055811]
[1610043540122,2.6053,1275.3,1275.2,2.73817432]
[1610043540325,27.26182568,1275.2,1274.2,3.65089909]
[1610043540522,78.35902568,1275.2,1274.2,3.65089909]
[1610043541425,78.35902568,1275.2,1273.8,2.9194]
[1610043541624,78.35902568,1275.2,1274.9,2.28936968]
[1610043541824,78.35902568,1275.2,1274.6,2.74724361]
[1610043542026,6.62159,1275.0,1274.6,2.74724361]
[1610043542224,33.88341568,1275.0,1274.6,2.74724361]
[1610043542425,33.88341568,1275.0,1274.3,3.20511755]
[1610043542426,29.87382568,1275.0,1274.2,1.83926471]
[1610043542629,2.612,1275.0,1274.9,0.91963236]
[1610043543026,2.612,1275.0,1274.2,1.83926471]
[1610043543629,45.2332,1274.0,1272.8,2.1358]
[1610043544031,4.00959,1272.9,1272.8,2.1358]
[1610043544231,4.00959,1272.9,1271.8,4.14889253]
[1610043545233,50.1933,1271.8,1271.0,4.60988059]
[1610043545432,50.1933,1271.8,1271.7,3.69786297]
[1610043545632,2.8526,1272.4,1271.7,3.69786297]
[1610043545834,2.8526,1272.4,1271.0,4.16009584]
[1610043546033,4.00959,1271.8,1271.0,4.16009584]
[1610043546233,7.08309,1271.8,1271.0,4.16009584]
[1610043546432,54.0992,1271.4,1271.0,4.16009584]
[1610043546633,54.0992,1271.4,1271.0,3.7099296]
[1610043547234,50.9154,1271.4,1271.0,3.7099296]
[1610043547833,50.9154,1271.4,1270.5,3.71521336]
[1610043548032,4.00959,1271.1,1270.5,3.71521336]
[1610043548233,38.47969,1271.4,1270.5,3.71521336]
[1610043548935,2.6855,1272.1,1270.5,3.71521336]
[1610043549133,62.9052,1271.2,1270.5,3.71521336]
[1610043549535,2.6855,1272.1,1270.4,3.7167595]
[1610043549733,46.5747,1270.5,1270.4,3.7167595]
[1610043549934,50.58429,1270.5,1270.4,3.7167595]
[1610043550734,4.00959,1270.5,1269.8,4.17961503]
[1610043551336,4.00959,1270.5,1270.2,3.71928571]
[1610043551735,51.9008,1270.2,1269.9,1.9824]
[1610043552135,4.00959,1270.0,1269.9,1.9824]
[1610043552336,4.00959,1270.0,1269.6,4.18419643]
[1610043552737,4.00959,1270.0,1268.5,4.2063756]
[1610043552935,53.1304,1269.8,1268.5,4.2063756]
[1610043553135,4.00959,1270.0,1268.5,4.2063756]
[1610043553336,2.8625,1269.8,1268.5,4.2063756]
[1610043553536,126.464,1269.5,1268.2,6.912]
[1610043553738,2.8625,1269.8,1268.2,6.912]
[1610043554136,4.00959,1268.3,1268.2,6.912]
[1610043554336,6.11889,1268.3,1268.2,6.912]
[1610043556147,6.11889,1268.3,1266.9,4.69364685]
[1610043556537,6.11889,1268.3,1268.0,3.29957691]
[1610043556743,6.11889,1268.3,1265.9,4.7136813]
[1610043557354,152.7471,1267.5,1265.9,4.7136813]
[1610043557543,3.0017,1267.5,1265.9,4.7136813]
[1610043558140,4.00959,1266.0,1265.9,4.7136813]
[1610043558339,6.08959,1266.0,1264.0,6.59915381]
[1610043558540,6.08959,1266.0,1263.8,5.69584734]
[1610043558741,55.2009,1264.8,1263.8,5.69584734]
[1610043558938,6.08959,1266.0,1263.8,5.69584734]
[1610043558939,54.4008,1264.4,1263.8,5.69584734]
[1610043559139,2.9009,1264.4,1263.8,5.69584734]
[1610043559944,2.9009,1264.4,1264.2,4.75972902]
[1610043560141,63.51789,1264.3,1264.2,4.75972902]
[1610043560543,66.2112,1264.2,1263.3,5.71167482]
[1610043561043,2.9009,1264.4,1263.3,5.71167482]
[1610043561845,2.9009,1264.4,1262.4,5.74016569]
[1610043562046,9.4465,1264.4,1262.4,5.74016569]
[1610043562245,9.4465,1264.4,1263.9,4.00959]
[1610043562645,9.4465,1264.4,1263.7,3.84375626]
[1610043562845,44.8092,1264.1,1263.7,3.84375626]
[1610043563044,3.0967,1264.1,1263.7,3.84375626]
[1610043563244,3.0967,1264.1,1261.4,5.76563439]
[1610043563445,56.4129,1264.1,1261.4,5.76563439]
[1610043564748,3.0967,1264.1,1262.9,4.33031183]
[1610043565651,3.0967,1264.1,1261.4,5.76563439]
[1610043565652,3.0967,1264.1,1262.8,4.33467512]
[1610043565851,2.9009,1264.4,1262.8,4.33467512]
[1610043566251,6.00909,1264.8,1262.8,4.33467512]
[1610043567351,4.00959,1263.5,1262.8,4.33467512]
[1610043567952,2.7971,1264.4,1262.8,4.33467512]
[1610043568354,65.8099,1264.1,1262.8,4.33467512]
[1610043568554,67.9428,1264.1,1262.8,4.33467512]
[1610043568754,67.9428,1264.1,1263.0,4.33774569]
[1610043569154,2.1329,1264.1,1263.0,4.33774569]
[1610043569354,4.00959,1263.1,1263.0,4.33774569]
[1610043569556,6.14139,1263.1,1263.0,4.33774569]
[1610043570759,6.14139,1263.1,1260.7,4.00959]
[1610043570760,2.1329,1264.1,1261.4,62.9208]
[1610043570960,2.7971,1264.4,1260.7,4.00959]
[1610043571157,2.7971,1264.4,1260.7,59.80029]
[1610043571358,4.00959,1264.0,1260.7,55.7907]
[1610043572759,6.55059,1264.0,1260.7,55.7907]
[1610043573161,6.55059,1264.0,1256.4,0.40416971]
[1610043573360,4.00959,1262.0,1257.2,52.3208]
[1610043573962,2.541,1264.0,1257.2,52.3208]
[1610043575464,4.00959,1261.3,1257.2,52.3208]
[1610043575668,4.00959,1261.3,1256.4,0.40416971]
[1610043575866,4.00959,1261.3,1256.8,55.2261]
[1610043576467,11.96499,1261.3,1256.8,55.2261]
[1610043577066,4.00959,1261.3,1256.4,0.40416971]
[1610043577267,6.95579,1261.3,1256.4,0.40416971]
[1610043577469,4.00959,1259.1,1258.3,4.00959]
[1610043577870,2.9462,1261.3,1258.3,4.00959]
[1610043579372,4.00959,1260.4,1259.8,4.00959]
[1610043579777,4.00959,1260.4,1257.3,62.1601]
[1610043580276,4.00959,1260.4,1256.4,0.40416971]
[1610043581485,4.00959,1259.1,1258.3,4.00959]
[1610043581883,4.00959,1259.1,1259.0,4.87681197]
[1610043582283,4.00959,1259.1,1258.1,5.85217437]
[1610043583484,4.00959,1258.2,1258.1,5.85217437]
[1610043583882,4.00959,1258.2,1256.4,0.40416971]
[1610043585483,4.00959,1256.5,1256.4,0.40416971]
[1610043585883,48.6882,1258.3,1256.4,0.40416971]
[1610043586083,2.1524,1258.3,1256.4,0.40416971]
[1610043587485,54.64109,1258.8,1258.2,4.00959]
[1610043587685,2.6578,1259.0,1256.4,0.40416971]
[1610043587887,3.0479,1259.3,1256.4,0.40416971]
[1610043588085,61.6347,1259.7,1256.4,0.40416971]
[1610043588285,8.70027005,1262.6,1256.4,0.40416971]
[1610043588485,56.4186,1260.7,1256.4,0.40416971]
[1610043588686,59.5476,1260.2,1256.4,0.40416971]
[1610043588888,62.5692,1260.2,1256.4,0.40416971]
[1610043589486,4.00959,1258.8,1256.4,0.40416971]
[1610043589686,9.2528,1258.7,1256.4,0.40416971]
[1610043589887,4.00959,1258.8,1256.4,0.40416971]
[1610043590089,64.0599,1258.6,1256.4,0.40416971]
[1610043591491,64.0599,1258.6,1258.3,4.00959]
[1610043591691,4.00959,1259.2,1256.4,0.40416971]
[1610043591892,53.0694,1258.7,1255.3,26.60276971]
[1610043592091,65.8199,1258.7,1253.8,60.3317]
[1610043592693,65.8199,1258.7,1253.8,10.73586971]
[1610043593493,2.1233,1259.6,1258.6,4.00959]
[1610043593693,2.1233,1259.6,1250.8,5.9449]
[1610043593893,2.1233,1259.6,1252.5,50.202]
[1610043595495,4.00959,1258.6,1252.5,50.202]
[1610043596095,2.2744,1259.0,1252.5,50.202]
[1610043597400,4.00959,1258.8,1258.5,4.00959]
[1610043597599,2.1233,1259.6,1258.5,4.00959]
[1610043597800,2.1233,1259.6,1250.8,5.9449]
[1610043597999,2.3996,1259.6,1252.8,45.184]
[1610043601405,4.00959,1258.4,1258.2,4.00959]
[1610043601606,4.00959,1258.4,1250.8,5.9449]
[1610043601808,2.7094,1258.8,1256.5,55.4411]
[1610043602006,2.7094,1258.8,1253.0,59.5207]
[1610043602206,2.7094,1258.8,1250.8,5.9449]
[1610043602406,2.7094,1258.8,1252.3,50.1211]
[1610043603406,2.7094,1258.8,1258.6,4.00959]
[1610043603807,2.7094,1258.8,1250.8,5.904]
[1610043604008,4.00959,1258.9,1252.2,63.3024]
[1610043605508,4.00959,1257.3,1252.2,63.3024]
[1610043605707,2.589,1259.1,1252.2,63.3024]
[1610043606610,2.3996,1259.6,1252.2,63.3024]
[1610043606809,2.7592,1259.9,1252.2,63.3024]
[1610043607011,56.7961,1260.1,1252.2,63.3024]
[1610043607410,4.00959,1258.8,1258.6,4.00959]
[1610043607611,4.00959,1258.8,1250.7,0.40416971]
[1610043608110,4.00959,1258.8,1252.0,45.5819]
[1610043608511,2.8511,1259.1,1252.0,45.5819]
[1610043609512,4.00959,1258.9,1252.0,45.5819]
[1610043609711,2.8511,1259.1,1252.0,45.5819]
[1610043611513,2.8511,1259.1,1259.0,4.00959]
[1610043611713,2.8511,1259.1,1250.7,0.40416971]
[1610043611914,2.8511,1259.1,1252.0,57.7463]
[1610043612315,2.8174,1259.4,1252.7,6.0068]
[1610043612515,2.8174,1259.4,1253.7,52.3976]
[1610043612719,2.8174,1259.4,1252.7,6.0068]
[1610043612916,2.8174,1259.4,1254.4,62.6941]
[1610043613518,4.00959,1258.6,1254.4,62.6941]
[1610043614819,2.0647,1259.1,1254.4,62.6941]
[1610043615619,2.0647,1259.1,1258.7,4.00959]
[1610043616420,2.8174,1259.4,1258.7,4.00959]
[1610043616620,14.46369115,1261.4,1258.7,4.00959]
[1610043616820,14.49072383,1261.5,1258.7,4.00959]
[1610043617620,14.49072383,1261.5,1258.5,59.8705]
[1610043617820,16.96922383,1261.5,1258.5,59.8705]
[1610043618021,14.47797911,1261.3,1258.5,59.8705]
[1610043619020,14.46548406,1261.4,1258.5,59.8705]
[1610043619522,4.00959,1260.7,1260.3,4.00959]
[1610043619724,4.00959,1260.7,1258.5,59.8705]
[1610043620122,3.0667,1261.1,1258.5,59.8705]
[1610043623526,16.94782325,1261.5,1258.5,59.8705]
[1610043623727,2.4785,1261.5,1258.5,59.8705]
[1610043623927,4.00959,1261.6,1258.5,59.8705]
[1610043624329,1.5776,1261.6,1258.5,59.8705]
[1610043624528,14.48936669,1261.8,1258.5,59.8705]
[1610043624733,14.45289553,1261.4,1258.5,59.8705]
[1610043625632,11.76495678,1261.6,1258.5,59.8705]
[1610043625633,3.1086,1261.6,1261.1,4.00959]
[1610043625833,14.47807339,1261.8,1261.1,4.00959]
[1610043627437,14.46627939,1261.5,1261.1,4.00959]
[1610043627636,14.46627939,1261.5,1261.4,4.00959]
[1610043628237,2.2733,1261.6,1261.4,4.00959]
[1610043629040,14.49456588,1262.0,1261.4,4.00959]
[1610043629241,14.49695427,1262.1,1261.4,4.00959]
[1610043629744,14.49695427,1262.1,1262.0,4.00959]
[1610043630142,14.50865523,1262.3,1262.0,4.00959]
[1610043631545,14.48855739,1262.2,1261.4,52.0928]
[1610043633348,14.49442435,1262.4,1261.4,52.0928]
[1610043633850,14.49442435,1262.4,1260.5,54.4481]
[1610043634048,17.40962435,1262.4,1258.5,3.89674471]
[1610043634250,17.40962435,1262.4,1259.2,53.7813]
[1610043634952,12.58457654,1262.4,1259.2,53.7813]
[1610043635752,12.58457654,1262.4,1262.3,4.00959]
[1610043636353,2.9152,1262.4,1262.3,4.00959]
[1610043638954,14.51758454,1262.7,1262.3,4.00959]
[1610043639754,14.53923264,1263.0,1262.6,4.00959]
[1610043641160,12.57617029,1263.6,1262.6,4.00959]
[1610043641161,14.33369477,1263.6,1262.6,4.00959]
[1610043641760,14.33369477,1263.6,1263.5,4.00959]
[1610043641959,14.33369477,1263.6,1262.1,64.0098]
[1610043642159,17.22069477,1263.6,1262.1,64.0098]
[1610043642662,14.3007906,1263.1,1262.1,64.0098]
[1610043643260,16.8199906,1263.1,1262.1,64.0098]
[1610043643661,16.8199906,1263.1,1263.0,4.00959]
[1610043643863,2.5192,1263.1,1263.0,4.00959]
[1610043644061,2.5192,1263.1,1262.1,64.0098]
[1610043645761,2.5192,1263.1,1263.0,4.00959]
[1610043648067,14.54910545,1263.3,1263.0,4.00959]
[1610043648769,11.59776907,1263.6,1263.0,4.00959]
[1610043648770,2.887,1263.6,1263.0,4.00959]
[1610043649172,9.72494303,1264.1,1263.0,4.00959]
[1610043649770,9.7227487,1264.3,1264.0,4.00959]
[1610043650975,14.57992634,1264.4,1264.0,4.00959]
[1610043651675,14.57992634,1264.4,1264.3,4.00959]
[1610043651877,6.78858316,1264.5,1264.3,4.00959]
[1610043652480,6.78858316,1264.5,1263.4,53.5073]
[1610043652682,9.65058316,1264.5,1263.4,53.5073]
[1610043653780,9.65058316,1264.5,1264.4,4.00959]
[1610043654379,9.65058316,1264.5,1262.8,48.1527]
[1610043654780,12.59325557,1264.5,1262.8,49.36861793]
[1610043655581,2.862,1264.5,1263.0,1.21616303]
[1610043655781,6.80059,1263.1,1263.0,1.21616303]
[1610043657083,6.80059,1263.1,1262.7,1.45939563]
[1610043657283,6.80059,1263.1,1262.5,0.97347337]
[1610043657684,4.00959,1262.6,1262.5,0.97347337]
[1610043657885,6.28709,1262.6,1262.5,0.97347337]
[1610043658086,6.28709,1262.6,1262.4,1.21684171]
[1610043658286,6.28709,1262.6,1261.8,1.2173684]
[1610043658987,6.28709,1262.6,1261.5,1.46084208]
[1610043659787,6.28709,1262.6,1260.4,45.8651]
[1610043659788,2.2775,1262.6,1260.4,45.8651]
[1610043661689,2.2775,1262.6,1262.3,4.00959]
[1610043661890,2.2775,1262.6,1261.5,2.5192]
[1610043662889,2.2775,1262.6,1260.4,45.8651]
[1610043663090,2.054,1262.6,1260.4,45.8651]
[1610043663290,2.054,1262.6,1260.4,2.3247]
[1610043663691,4.00959,1261.3,1261.0,4.00959]
[1610043664091,7.12879,1261.3,1261.0,4.00959]
[1610043664291,3.1192,1261.3,1261.0,4.00959]
[1610043664692,3.1192,1261.3,1260.0,59.0074]
[1610043665791,7.18719,1260.8,1260.0,59.0074]
[1610043666795,3.1776,1260.8,1260.0,59.0074]
[1610043668595,3.1776,1260.8,1257.8,6.1391]
[1610043669900,3.1776,1260.8,1259.5,4.00959]
[1610043670098,3.1776,1260.8,1258.5,54.5985]
[1610043670799,3.1192,1261.3,1258.5,54.5985]
[1610043670999,21.24825602,1262.5,1258.5,56.8262]
[1610043671902,4.00959,1260.5,1258.5,56.8262]
[1610043672102,6.12049,1260.5,1258.5,56.8262]
[1610043672302,2.1109,1260.5,1258.5,56.8262]
[1610043673904,2.1109,1260.5,1260.4,4.00959]
[1610043674303,2.1109,1260.5,1258.5,56.8262]
[1610043675406,2.6192,1260.9,1258.5,56.8262]
[1610043675807,2.6192,1260.9,1260.8,4.00959]
[1610043676909,2.6192,1260.9,1258.5,56.8262]
[1610043677314,2.6192,1260.9,1258.5,2.2277]
[1610043677516,2.6192,1260.9,1257.8,6.1391]
[1610043677808,2.6192,1260.9,1260.1,4.00959]
[1610043678008,2.6192,1260.9,1253.5,0.4]
[1610043678206,2.6192,1260.9,1257.3,59.3825]
[1610043678809,2.6192,1260.9,1253.6,5.8594]
[1610043679009,64.3648,1260.5,1255.8,66.2367]
[1610043679209,67.3837,1260.5,1255.8,66.2367]
[1610043679811,4.00959,1259.5,1258.8,4.00959]
[1610043680011,7.13209,1259.5,1258.8,4.00959]
[1610043680411,7.13209,1259.5,1255.8,66.2367]
[1610043681818,4.00959,1258.7,1258.0,4.00959]
[1610043682016,7.13389,1258.7,1258.0,4.00959]
[1610043682216,7.13389,1258.7,1253.6,5.8594]
[1610043682416,7.13389,1258.7,1254.5,64.958]
[1610043682615,7.13389,1258.7,1254.5,67.3788]
[1610043683918,8.3223,1258.5,1254.5,67.3788]
[1610043684418,3.1243,1258.7,1254.5,2.4208]
[1610043684620,52.8997,1258.2,1254.5,2.4208]
[1610043685020,56.0685,1258.2,1254.5,2.4208]
[1610043685921,4.00959,1257.6,1256.4,4.00959]
[1610043686119,16.26299,1257.6,1256.4,4.00959]
[1610043687219,12.2534,1257.6,1256.4,4.00959]
[1610043687620,2.7484,1257.6,1256.4,4.00959]
[1610043687820,2.7484,1257.6,1257.0,4.00959]
[1610043688420,2.7484,1257.6,1255.8,2.1811]
[1610043689520,2.7484,1257.6,1255.5,2.5742]
[1610043689720,52.9025,1257.6,1255.5,2.5742]
[1610043689921,4.00959,1256.9,1256.1,4.00959]
[1610043690121,6.98999,1256.9,1256.1,4.00959]
[1610043690326,2.9804,1256.9,1256.1,4.00959]
[1610043691221,2.7484,1257.6,1256.1,4.00959]
[1610043691421,3.1688,1258.2,1256.1,6.73889]
[1610043691622,3.1243,1258.7,1256.1,6.73889]
[1610043691822,4.00959,1257.6,1256.9,4.00959]
[1610043692224,6.75299,1257.6,1256.9,4.00959]
[1610043692623,2.7434,1257.6,1256.9,4.00959]
[1610043693825,2.7434,1257.6,1257.5,4.00959]
[1610043694827,2.1241,1257.9,1257.5,4.00959]
[1610043695225,57.969,1260.2,1257.5,4.00959]
[1610043695425,14.28951368,1260.8,1257.5,4.00959]
[1610043695826,4.00959,1260.1,1259.7,4.00959]
[1610043696024,6.52929,1260.1,1259.7,4.00959]
[1610043697026,6.52929,1260.1,1257.3,2.804]
[1610043697929,4.00959,1257.6,1257.3,2.804]
[1610043698130,2.6583,1258.9,1257.3,2.804]
[1610043698537,2.6583,1258.9,1256.6,4.00959]
[1610043699130,61.2699,1258.7,1255.9,1.9988]
[1610043699735,61.2699,1258.7,1254.4,48.0962]
[1610043699935,61.2699,1258.7,1256.4,4.00959]
[1610043700332,2.6583,1258.9,1256.4,4.00959]
[1610043700931,2.6583,1258.9,1256.3,1.9581]
[1610043701831,4.00959,1257.7,1256.6,4.00959]
[1610043702029,2.9948,1257.8,1256.6,4.00959]
[1610043702330,2.9948,1257.8,1256.6,6.67209]
[1610043703636,2.6583,1258.9,1256.6,6.67209]
[1610043703836,4.00959,1258.5,1258.0,4.00959]
[1610043704034,2.7026,1258.5,1258.0,4.00959]
[1610043705237,2.7026,1258.5,1256.6,2.6625]
[1610043705838,4.00959,1257.4,1256.6,2.6625]
[1610043706437,6.32439,1257.4,1256.6,2.6625]
[1610043706839,6.32439,1257.4,1256.3,1.9581]
[1610043707038,6.32439,1257.4,1255.5,2.9772]
[1610043707238,6.32439,1257.4,1253.9,55.5303]
[1610043707438,6.32439,1257.4,1251.7,5.7806]
[1610043707638,62.1441,1256.6,1252.3,47.7353]
[1610043707838,4.00959,1254.7,1253.3,4.00959]
[1610043708437,51.5742,1255.0,1253.3,4.00959]
[1610043708639,51.5742,1255.0,1254.8,4.88790458]
[1610043709038,51.5742,1255.0,1254.8,6.92150458]
[1610043710038,51.5742,1255.0,1254.8,2.0336]
[1610043710439,51.5742,1255.0,1254.7,3.9137068]
[1610043710639,53.5384,1255.0,1254.7,3.9137068]
[1610043711842,4.00959,1254.8,1253.7,4.4036798]
[1610043712646,61.9776,1254.0,1253.7,4.4036798]
[1610043713346,61.9776,1254.0,1252.9,4.89297755]
[1610043713945,4.00959,1253.0,1252.9,4.89297755]
[1610043714147,6.81429,1253.0,1252.9,4.89297755]
[1610043714347,2.8047,1253.0,1252.9,4.89297755]
[1610043714548,53.4924,1252.9,1252.4,4.89756493]
[1610043715548,2.8047,1253.0,1252.4,4.89756493]
[1610043715949,4.00959,1252.7,1252.4,4.89756493]
[1610043716149,6.69449,1252.7,1252.4,4.89756493]
[1610043716349,2.6849,1252.7,1252.4,4.89756493]